bitfinex/quotes_BTCUSD_20230831
["timestamp","ask_amount","ask_price","bid_price","bid_amount"]
[1693491057302,0.036,27110.0,27109.0,0.22252354]
[1693491057523,0.02,27118.0,27109.0,0.22252354]
[1693491057736,1.0168,27119.0,27110.0,0.21198748]
[1693491057737,0.36768085,27117.0,27110.0,0.21198748]
[1693491057947,0.36768085,27118.0,27112.0,0.1453]
[1693491058167,0.03098463,27117.0,27113.0,0.05763433]
[1693491058883,0.03098463,27117.0,27114.0,0.30894845]
[1693491059088,0.03098463,27117.0,27112.0,0.1453]
[1693491059089,0.06698463,27117.0,27112.0,0.1453]
[1693491059301,0.06698463,27117.0,27113.0,0.02453]
[1693491059507,0.03098463,27117.0,27113.0,0.02453]
[1693491059713,0.03098463,27117.0,27114.0,0.2306784]
[1693491059918,0.029,27117.0,27114.0,0.310082]
[1693491060138,0.029,27117.0,27113.0,0.003]
[1693491060350,0.029,27117.0,27113.0,0.03864426]
[1693491060561,0.029,27117.0,27114.0,0.2601587]
[1693491060776,0.029,27117.0,27115.0,0.2453]
[1693491061221,0.03091977,27116.0,27115.0,0.1]
[1693491061648,1.0168,27123.0,27115.0,0.3949491]
[1693491061860,0.005,27117.0,27116.0,0.05763433]
[1693491062073,0.002,27117.0,27115.0,0.3949491]
[1693491062292,0.002,27117.0,27116.0,0.00098287]
[1693491062293,0.03092312,27117.0,27116.0,0.00098287]
[1693491062520,0.03092312,27117.0,27115.0,0.4049491]
[1693491062730,0.36768085,27122.0,27115.0,0.4069491]
[1693491062731,0.002,27116.0,27115.0,0.4069491]
[1693491063175,0.16884232,27121.0,27115.0,0.4069491]
[1693491063176,0.003,27117.0,27115.0,0.2949491]
[1693491064042,0.003,27117.0,27113.0,0.1]
[1693491064476,0.36968085,27117.0,27116.0,0.001]
[1693491064697,0.40964893,27117.0,27116.0,0.001]
[1693491065180,0.40464893,27117.0,27110.0,0.08099006]
[1693491065385,0.51475319,27116.0,27113.0,0.001]
[1693491065594,0.36768085,27116.0,27113.0,0.001]
[1693491065801,0.36768085,27116.0,27110.0,0.08099006]
[1693491066009,0.14707234,27115.0,27110.0,0.08099006]
[1693491066216,0.36768085,27114.0,27110.0,0.08099006]
[1693491066446,0.51475319,27114.0,27110.0,0.08099006]
[1693491066679,0.51475319,27114.0,27111.0,0.294754]
[1693491066680,0.36768085,27114.0,27111.0,0.294754]
[1693491066893,0.002,27117.0,27110.0,0.40754489]
[1693491067108,0.002,27117.0,27111.0,0.05763433]
[1693491067325,0.002,27117.0,27112.0,0.05763433]
[1693491067745,0.02,27122.0,27113.0,0.2453]
[1693491067963,0.247,27123.0,27113.0,0.2453]
[1693491067964,0.003,27116.0,27114.0,0.22874202]
[1693491068180,0.003,27116.0,27115.0,0.2453]
[1693491068181,0.002,27116.0,27115.0,0.2453]
[1693491068397,0.002,27116.0,27115.0,0.5453]
[1693491068603,0.003,27117.0,27116.0,0.1]
[1693491068811,0.002,27117.0,27116.0,0.1]
[1693491069237,0.36768085,27121.0,27116.0,0.37525754]
[1693491069442,0.36768085,27121.0,27116.0,0.43289187]
[1693491069647,0.0306957,27117.0,27116.0,0.15763433]
[1693491069858,0.0336957,27117.0,27116.0,0.34364812]
[1693491070065,0.003,27117.0,27116.0,0.34364812]
[1693491070299,0.003,27117.0,27116.0,0.32364812]
[1693491070694,0.003,27117.0,27116.0,0.08]
[1693491071111,0.003,27117.0,27116.0,0.33636846]
[1693491071318,0.40368085,27121.0,27116.0,0.023]
[1693491071520,0.40368085,27121.0,27116.0,0.08063433]
[1693491071759,0.03053708,27120.0,27117.0,0.30395361]
[1693491071953,0.03053708,27120.0,27117.0,0.2322973]
[1693491073154,0.037,27120.0,27117.0,0.2352973]
[1693491073555,0.037,27120.0,27117.0,0.2318973]
[1693491074169,0.073,27120.0,27118.0,0.14401705]
[1693491074999,0.037,27120.0,27117.0,0.003]
[1693491075201,0.18407234,27120.0,27117.0,0.003]
[1693491075479,0.18407234,27120.0,27118.0,0.003]
[1693491075480,0.036,27120.0,27118.0,0.003]
[1693491075691,0.03045819,27119.0,27118.0,0.003]
[1693491076103,0.03045819,27119.0,27115.0,0.38099547]
[1693491076307,0.1623,27123.0,27117.0,0.25666682]
[1693491076539,0.227,27126.0,27118.0,0.05763433]
[1693491076540,0.037,27120.0,27118.0,0.05763433]
[1693491076755,0.037,27120.0,27118.0,0.30950512]
[1693491076983,0.037,27120.0,27117.0,0.21206623]
[1693491077187,0.073,27120.0,27118.0,0.26434293]
[1693491077393,0.03038826,27119.0,27118.0,0.26434293]
[1693491077845,0.03038826,27119.0,27117.0,0.150599]
[1693491078070,0.03038826,27119.0,27118.0,0.011]
[1693491078071,0.1774606,27119.0,27118.0,0.011]
[1693491078283,0.39806911,27119.0,27118.0,0.011]
[1693491078499,0.39806911,27119.0,27118.0,0.003]
[1693491078708,0.42806911,27119.0,27118.0,0.003]
[1693491078922,0.40106911,27119.0,27118.0,0.024]
[1693491079137,0.48054602,27119.0,27118.0,0.024]
[1693491079351,0.51054602,27119.0,27118.0,0.024]
[1693491079764,0.53054602,27119.0,27118.0,0.024]
[1693491079973,0.90714602,27119.0,27118.0,0.024]
[1693491080178,0.92714602,27119.0,27118.0,0.024]
[1693491080385,0.95414602,27119.0,27118.0,0.003]
[1693491080809,0.99014602,27119.0,27118.0,0.007]
[1693491081230,0.46806911,27119.0,27118.0,0.003]
[1693491081436,0.42806911,27119.0,27118.0,0.003]
[1693491081676,0.43506911,27119.0,27118.0,0.003]
[1693491082285,0.39806911,27119.0,27118.0,0.003]
[1693491082500,0.53967602,27119.0,27118.0,0.003]
[1693491082709,0.57667602,27119.0,27118.0,0.006]
[1693491083141,0.55967602,27119.0,27118.0,0.003]
[1693491083336,0.59667602,27119.0,27118.0,0.006]
[1693491083750,0.52267602,27119.0,27112.0,0.06]
[1693491083962,0.62421079,27118.0,27112.0,0.06]
[1693491084378,0.78311079,27118.0,27112.0,0.06]
[1693491084840,0.78311079,27118.0,27112.0,0.11763433]
[1693491085047,0.78311079,27118.0,27112.0,0.34708601]
[1693491085278,0.78311079,27118.0,27113.0,0.17266464]
[1693491085279,0.1589,27118.0,27113.0,0.17266464]
[1693491085505,0.06738826,27119.0,27118.0,0.003]
[1693491085742,0.43506911,27119.0,27118.0,0.003]
[1693491085981,0.39806911,27119.0,27114.0,0.1]
[1693491086214,0.037,27118.0,27114.0,0.1]
[1693491086690,0.36768085,27117.0,27114.0,0.1]
[1693491086907,0.39773902,27117.0,27114.0,0.1]
[1693491088783,0.39773902,27117.0,27114.0,0.101]
[1693491088784,0.40073902,27117.0,27114.0,0.101]
[1693491089621,0.43673902,27117.0,27114.0,0.101]
[1693491090027,0.43373902,27117.0,27114.0,0.1]
[1693491090467,0.46973902,27117.0,27114.0,0.103]
[1693491090883,0.46973902,27117.0,27114.0,0.36030557]
[1693491091096,0.46973902,27117.0,27115.0,0.11382572]
[1693491092127,0.46973902,27117.0,27114.0,0.083]
[1693491092337,0.43373902,27117.0,27114.0,0.083]
[1693491092550,0.62418526,27117.0,27114.0,0.003]
[1693491092765,0.51311292,27117.0,27115.0,0.002]
[1693491093179,0.47711292,27117.0,27115.0,0.002]
[1693491093388,0.42873902,27117.0,27115.0,0.002]
[1693491093599,0.42873902,27117.0,27115.0,0.003]
[1693491093802,0.46473902,27117.0,27115.0,0.003]
[1693491094214,0.42873902,27117.0,27115.0,0.003]
[1693491094835,0.39868085,27117.0,27115.0,0.003]
[1693491095692,0.43468085,27117.0,27115.0,0.005]
[1693491096760,0.79428085,27116.0,27115.0,0.005]
[1693491096972,1.09989202,27116.0,27115.0,0.005]
[1693491097612,1.18776184,27116.0,27115.0,0.005]
[1693491097817,1.23259684,27116.0,27115.0,0.002]
[1693491098024,1.45088477,27116.0,27115.0,0.006]
[1693491098230,1.48688477,27116.0,27115.0,0.006]
[1693491098659,1.39901495,27116.0,27115.0,0.006]
[1693491098870,1.58688477,27116.0,27115.0,0.004]
[1693491099080,2.1307095,27116.0,27115.0,0.006]
[1693491099289,1.99716477,27116.0,27115.0,0.006]
[1693491099504,1.99062477,27116.0,27115.0,0.006]
[1693491099732,2.1224295,27116.0,27115.0,0.006]
[1693491099955,2.11931783,27116.0,27115.0,0.006]
[1693491100173,2.11893917,27116.0,27115.0,0.006]
[1693491100383,1.98707444,27116.0,27115.0,0.006]
[1693491100607,1.98743444,27116.0,27115.0,0.006]
[1693491100845,1.98821444,27116.0,27115.0,0.006]
[1693491101050,1.99031444,27116.0,27115.0,0.006]
[1693491101469,1.98755444,27116.0,27115.0,0.006]
[1693491101688,1.92281444,27116.0,27115.0,0.006]
[1693491102165,1.83501495,27116.0,27115.0,0.006]
[1693491102371,1.92281444,27116.0,27115.0,0.006]
[1693491102580,1.83501495,27116.0,27115.0,0.006]
[1693491103260,1.92281444,27116.0,27115.0,0.006]
[1693491103471,1.83501495,27116.0,27115.0,0.006]
[1693491105152,1.77501495,27116.0,27115.0,0.006]
[1693491105360,0.54451585,27116.0,27115.0,0.006]
[1693491105563,0.47968085,27116.0,27115.0,0.006]
[1693491105770,0.43968085,27116.0,27115.0,0.006]
[1693491106815,0.072,27116.0,27115.0,0.06363433]
[1693491107049,0.072,27116.0,27115.0,0.52313065]
[1693491107233,0.072,27116.0,27115.0,0.49984899]
[1693491107651,0.072,27116.0,27115.0,0.006]
[1693491108081,0.072,27116.0,27115.0,0.32299037]
[1693491108702,0.036,27116.0,27115.0,0.004]
[1693491108911,0.072,27116.0,27115.0,0.28810828]
[1693491109329,0.02,27122.0,27115.0,0.28210828]
[1693491109557,0.02,27122.0,27116.0,0.05763433]
[1693491109558,0.36768085,27121.0,27116.0,0.05763433]
[1693491109944,0.36768085,27121.0,27116.0,0.05861731]
[1693491110561,0.36768085,27121.0,27116.0,0.00098298]
[1693491110734,0.41722888,27121.0,27116.0,0.00098298]
[1693491110957,0.29237234,27120.0,27116.0,0.00098298]
[1693491111154,0.29237234,27120.0,27112.0,0.185]
[1693491111155,0.36768085,27119.0,27112.0,0.185]
[1693491111354,0.51475319,27119.0,27112.0,0.18598174]
[1693491111558,0.1556,27118.0,27112.0,0.00098174]
[1693491111710,0.51475319,27117.0,27112.0,0.00098174]
[1693491112161,0.66005319,27117.0,27112.0,0.00098174]
[1693491112357,0.1453,27114.0,27112.0,0.00098174]
[1693491112563,0.36768085,27113.0,27109.0,0.0448344]
[1693491112765,0.14707234,27112.0,27109.0,0.0448344]
[1693491112950,0.36768085,27111.0,27109.0,0.0448344]
[1693491113913,0.36768085,27111.0,27110.0,0.10200926]
[1693491114131,0.004,27111.0,27110.0,0.10200926]
[1693491114332,0.008,27111.0,27110.0,0.10200926]
[1693491114531,0.008,27111.0,27109.0,0.0998344]
[1693491115317,0.008,27111.0,27109.0,0.37457942]
[1693491115318,0.37568085,27111.0,27109.0,0.37457942]
[1693491115527,0.37568085,27111.0,27109.0,0.0998344]
[1693491115726,0.37168085,27111.0,27109.0,0.0638344]
[1693491115983,0.36768085,27111.0,27110.0,0.25094562]
[1693491116162,0.37168085,27111.0,27110.0,0.25094562]
[1693491116377,0.37568085,27111.0,27110.0,0.25094562]
[1693491116798,0.37168085,27111.0,27110.0,0.25094562]
[1693491117007,0.37168085,27111.0,27110.0,0.036]
[1693491117229,0.37168085,27111.0,27110.0,0.12993469]
[1693491117442,0.37568085,27111.0,27110.0,0.14893469]
[1693491117882,0.37568085,27111.0,27110.0,0.055]
[1693491119160,0.008,27111.0,27110.0,0.35195696]
[1693491119797,0.008,27111.0,27110.0,0.4061661]
[1693491119994,0.008,27111.0,27110.0,0.055]
[1693491121202,0.008,27111.0,27110.0,0.155]
[1693491121404,0.008,27111.0,27110.0,1.07124085]
[1693491121604,0.008,27111.0,27110.0,1.05846085]
[1693491121803,0.008,27111.0,27110.0,1.05030085]
[1693491122017,0.008,27111.0,27110.0,1.10921389]
[1693491122207,0.02,27120.0,27110.0,1.05421389]
[1693491122438,0.36768085,27119.0,27111.0,0.35763433]
[1693491122844,0.51475319,27119.0,27112.0,0.06306]
[1693491123046,0.36768085,27119.0,27113.0,0.05763433]
[1693491123250,0.36768085,27119.0,27113.0,0.10072082]
[1693491123750,0.51475319,27119.0,27113.0,0.10072082]
[1693491123948,0.55175319,27119.0,27114.0,0.27867813]
[1693491124236,0.40468085,27119.0,27114.0,0.33631246]
[1693491124645,0.40468085,27119.0,27114.0,0.05763433]
[1693491125249,0.40468085,27119.0,27114.0,0.07691841]
[1693491125457,0.36768085,27119.0,27114.0,0.01928408]
[1693491125661,0.40468085,27119.0,27114.0,0.01928408]
[1693491125871,0.36768085,27119.0,27114.0,0.31810554]
[1693491126088,0.55175319,27119.0,27114.0,0.31810554]
[1693491126313,0.14707234,27118.0,27114.0,0.003]
[1693491126520,0.36768085,27117.0,27114.0,0.003]
[1693491126924,0.36768085,27117.0,27114.0,0.006]
[1693491127337,0.36768085,27117.0,27114.0,0.31036225]
[1693491127562,0.36768085,27117.0,27114.0,0.30736225]
[1693491128521,0.36768085,27117.0,27114.0,0.30436225]
[1693491128750,0.39168085,27117.0,27115.0,0.0588301]
[1693491129599,0.041,27117.0,27115.0,0.0588301]
[1693491129838,0.017,27117.0,27115.0,0.0588301]
[1693491130050,0.017,27117.0,27115.0,0.0608301]
[1693491130051,0.024,27117.0,27115.0,0.0608301]
[1693491130258,0.041,27117.0,27115.0,0.0628301]
[1693491131083,0.041,27117.0,27115.0,0.004]
[1693491131528,0.041,27117.0,27115.0,0.328112]
[1693491131736,0.041,27117.0,27115.0,0.56606959]
[1693491131965,0.041,27117.0,27116.0,0.1262208]
[1693491133044,0.08779949,27122.0,27116.0,0.1262208]
[1693491133250,0.36768085,27121.0,27117.0,0.05763433]
[1693491133638,0.36768085,27121.0,27116.0,0.1302208]
[1693491133882,0.36768085,27121.0,27116.0,0.13755586]
[1693491134125,0.24539949,27123.0,27117.0,0.3]
[1693491134332,0.52528085,27123.0,27118.0,0.05763433]
[1693491134537,0.52528085,27123.0,27119.0,0.27775267]
[1693491134745,0.037,27121.0,27119.0,0.330387]
[1693491134986,0.52528085,27123.0,27119.0,0.34109137]
[1693491135402,0.037,27122.0,27119.0,0.34109137]
[1693491135815,0.52528085,27123.0,27119.0,0.34109137]
[1693491136022,0.1576,27123.0,27119.0,0.34109137]
[1693491136231,0.011,27123.0,27119.0,0.26227303]
[1693491136442,0.037,27121.0,27120.0,0.0333313]
[1693491136686,0.011,27123.0,27120.0,0.0333313]
[1693491137172,0.001,27122.0,27120.0,0.1809183]
[1693491137418,0.001,27122.0,27119.0,0.0733387]
[1693491137917,0.002,27121.0,27120.0,0.022]
[1693491138122,0.1663,27124.0,27119.0,0.147591]
[1693491138329,0.1663,27124.0,27121.0,0.31233469]
[1693491138798,0.1663,27124.0,27121.0,0.19793433]
[1693491139003,0.1663,27124.0,27121.0,0.45948695]
[1693491139207,0.1903,27124.0,27121.0,0.20600779]
[1693491139415,0.1903,27124.0,27121.0,0.1453]
[1693491139620,0.024,27124.0,27121.0,0.46124427]
[1693491139830,1.08459949,27130.0,27122.0,0.02]
[1693491140046,0.024,27124.0,27123.0,0.05263433]
[1693491140257,0.024,27124.0,27123.0,0.1453]
[1693491140464,0.024,27124.0,27123.0,0.22698786]
[1693491140669,0.024,27124.0,27123.0,0.89466871]
[1693491140875,0.024,27124.0,27123.0,1.06540871]
[1693491141081,0.9968,27130.0,27123.0,1.12924729]
[1693491141285,0.2365,27133.0,27127.0,0.1453]
[1693491141543,0.2365,27133.0,27128.0,0.05263433]
[1693491141750,0.2365,27133.0,27129.0,0.01979343]
[1693491141958,0.3883,27133.0,27129.0,0.07242776]
[1693491142341,0.77098085,27133.0,27127.0,0.00399032]
[1693491142601,0.91805319,27133.0,27127.0,0.05662465]
[1693491143024,0.90305319,27133.0,27127.0,0.05362465]
[1693491143220,0.91805319,27133.0,27129.0,0.25774728]
[1693491143399,0.4033,27133.0,27130.0,0.08906303]
[1693491144185,0.2515,27133.0,27130.0,0.08906303]
[1693491144389,0.052,27133.0,27130.0,0.42334331]
[1693491144589,0.037,27133.0,27131.0,0.04263433]
[1693491144743,0.9968,27138.0,27132.0,0.63224584]
[1693491144971,0.9968,27138.0,27134.0,0.1453]
[1693491145177,0.9968,27138.0,27135.0,0.05263433]
[1693491145376,0.3922,27140.0,27135.0,0.05263433]
[1693491145590,0.3922,27140.0,27136.0,0.01979343]
[1693491145794,0.3922,27140.0,27136.0,0.07242776]
[1693491146198,0.3922,27140.0,27136.0,0.01979343]
[1693491146436,0.4062,27140.0,27136.0,0.01979343]
[1693491147467,0.4062,27140.0,27136.0,0.2703574]
[1693491147714,0.4082,27140.0,27136.0,0.2713574]
[1693491148129,0.4082,27140.0,27137.0,0.02743574]
[1693491148330,0.3942,27140.0,27137.0,0.02743574]
[1693491148736,0.4082,27140.0,27137.0,0.02743574]
[1693491148965,0.4082,27140.0,27136.0,0.2723574]
[1693491149193,0.3942,27140.0,27136.0,0.2713574]
[1693491149399,0.4082,27140.0,27137.0,0.001]
[1693491149815,0.3942,27140.0,27136.0,0.02079343]
[1693491150453,0.4062,27140.0,27136.0,0.02079343]
[1693491150866,0.4082,27140.0,27137.0,0.001]
[1693491151070,0.4062,27140.0,27136.0,0.02079343]
[1693491151470,0.4082,27140.0,27136.0,0.02179343]
[1693491151677,0.3922,27140.0,27136.0,0.01979343]
[1693491151897,0.3922,27140.0,27134.0,0.1453]
[1693491152103,0.55527234,27140.0,27137.0,0.002]
[1693491152332,0.4082,27140.0,27137.0,0.002]
[1693491152507,0.4082,27140.0,27134.0,0.1453]
[1693491152508,0.3922,27140.0,27134.0,0.1453]
[1693491152707,0.53927234,27140.0,27135.0,0.04453]
[1693491152913,0.4062,27140.0,27136.0,0.001]
[1693491153434,0.3922,27140.0,27135.0,0.04453]
[1693491153639,0.4062,27140.0,27137.0,0.29446356]
[1693491153840,0.4062,27140.0,27138.0,0.10309728]
[1693491154089,0.4062,27140.0,27138.0,0.24839728]
[1693491154090,0.2573,27140.0,27138.0,0.24839728]
[1693491154814,0.2553,27140.0,27138.0,0.10309728]
[1693491155145,0.2573,27140.0,27138.0,0.10409728]
[1693491155359,0.2433,27140.0,27138.0,0.10409728]
[1693491155561,0.2433,27140.0,27139.0,0.22286693]
[1693491155957,0.016,27140.0,27139.0,0.22286693]
[1693491156386,0.016,27140.0,27139.0,0.24819826]
[1693491156387,0.002,27140.0,27139.0,0.24819826]
[1693491156619,0.002,27140.0,27139.0,0.32741797]
[1693491156821,0.016,27140.0,27139.0,0.62841797]
[1693491157217,0.016,27140.0,27139.0,0.32633133]
[1693491157447,0.014,27140.0,27139.0,0.6189288]
[1693491157808,0.016,27140.0,27139.0,0.32733133]
[1693491157996,0.014,27140.0,27139.0,0.61441106]
[1693491158331,0.014,27140.0,27139.0,0.63041106]
[1693491158534,0.3878,27143.0,27139.0,0.62941106]
[1693491158735,0.3878,27143.0,27140.0,0.08041574]
[1693491158897,0.1534,27143.0,27140.0,0.08041574]
[1693491159596,0.001,27140.0,27139.0,0.68841106]
[1693491160269,0.1534,27143.0,27139.0,0.65141106]
[1693491160413,0.1534,27143.0,27140.0,0.09065776]
[1693491161061,0.1534,27143.0,27140.0,0.09365776]
[1693491161607,0.2394,27144.0,27140.0,0.09365776]
[1693491161817,0.2394,27144.0,27141.0,0.04189891]
[1693491163448,0.2454,27144.0,27141.0,0.04189891]
[1693491163687,0.2454,27144.0,27141.0,0.32011094]
[1693491163896,0.2394,27144.0,27141.0,0.32011094]
[1693491164536,0.2424,27144.0,27141.0,0.32011094]
[1693491164751,0.61008085,27144.0,27139.0,0.3]
[1693491164955,0.75715319,27144.0,27138.0,0.32944636]
[1693491165168,0.14707234,27143.0,27138.0,0.32944636]
[1693491165394,0.67365319,27143.0,27137.0,0.00099022]
[1693491165610,0.1453,27139.0,27137.0,0.00099022]
[1693491165831,0.51475319,27138.0,27129.0,0.02]
[1693491166043,0.14707234,27137.0,27129.0,0.02]
[1693491166253,0.75558085,27136.0,27129.0,0.14]
[1693491166457,0.14707234,27135.0,27130.0,0.028]
[1693491166685,0.51475319,27135.0,27130.0,0.028]
[1693491167726,0.36768085,27135.0,27130.0,0.028]
[1693491168164,0.51475319,27135.0,27130.0,0.028]
[1693491168374,0.51475319,27135.0,27130.0,0.328]
[1693491168581,0.36768085,27135.0,27130.0,0.328]
[1693491168788,0.36868085,27135.0,27130.0,0.365]
[1693491168994,0.36968085,27135.0,27130.0,0.374]
[1693491170260,0.51475319,27134.0,27130.0,0.374]
[1693491170472,0.51475319,27134.0,27130.0,0.074]
[1693491171071,0.36768085,27134.0,27130.0,0.074]
[1693491171457,0.36768085,27134.0,27130.0,0.037]
[1693491171884,0.36768085,27134.0,27130.0,0.056]
[1693491171885,0.36868085,27134.0,27130.0,0.056]
[1693491172083,0.36768085,27134.0,27126.0,0.02919254]
[1693491172259,0.30987234,27133.0,27127.0,0.03291925]
[1693491172464,0.36768085,27132.0,27130.0,0.056]
[1693491173109,0.36768085,27132.0,27130.0,0.019]
[1693491174234,0.36768085,27132.0,27127.0,0.056]
[1693491174438,0.73665319,27132.0,27127.0,0.093]
[1693491174640,0.73665319,27132.0,27127.0,0.037]
[1693491174846,0.90135319,27132.0,27126.0,0.03798751]
[1693491175051,0.90135319,27132.0,27130.0,0.032]
[1693491175258,0.75528085,27132.0,27130.0,0.032]
[1693491175468,0.75428085,27132.0,27127.0,0.04039004]
[1693491175676,0.90135319,27132.0,27127.0,0.04039004]
[1693491175873,0.75528085,27132.0,27127.0,0.07739004]
[1693491176075,0.75528085,27132.0,27130.0,0.034]
[1693491176488,0.75528085,27132.0,27126.0,0.00098751]
[1693491176489,0.75428085,27132.0,27126.0,0.00098751]
[1693491176696,0.14707234,27131.0,27126.0,0.06073325]
[1693491176828,0.36768085,27130.0,27127.0,0.037]
[1693491177045,0.51475319,27130.0,27127.0,0.037]
[1693491177240,0.51475319,27130.0,27126.0,0.00098751]
[1693491177451,0.02,27127.0,27121.0,0.14134404]
[1693491177649,0.14707234,27126.0,27121.0,0.08814261]
[1693491178076,0.30197234,27126.0,27121.0,0.15056717]
[1693491178443,0.30197234,27126.0,27122.0,0.38814261]
[1693491178647,0.2637,27126.0,27122.0,0.3]
[1693491179052,0.2647,27126.0,27122.0,0.3]
[1693491179259,0.63238085,27126.0,27122.0,0.3]
[1693491179528,0.02,27124.0,27121.0,0.02973146]
[1693491179735,0.02,27124.0,27120.0,0.08912679]
[1693491179941,0.16707234,27124.0,27120.0,0.13764976]
[1693491180163,0.02,27124.0,27120.0,0.13764976]
[1693491180597,0.02,27124.0,27122.0,0.037]
[1693491181045,0.02,27124.0,27120.0,0.13764976]
[1693491181446,0.022,27124.0,27122.0,0.037]
[1693491181654,0.022,27124.0,27121.0,0.08814261]
[1693491182081,0.024,27124.0,27122.0,0.037]
[1693491182292,0.50048085,27124.0,27122.0,0.037]
[1693491182712,0.49848085,27124.0,27122.0,0.037]
[1693491182918,0.49648085,27124.0,27120.0,0.08912679]
[1693491183157,0.50048085,27124.0,27122.0,0.037]
[1693491183348,0.38768085,27123.0,27122.0,0.037]
[1693491183556,0.66355319,27123.0,27122.0,0.037]
[1693491183770,0.66355319,27123.0,27121.0,0.037]
[1693491183771,0.51648085,27123.0,27121.0,0.037]
[1693491183988,0.1288,27122.0,27121.0,0.037]
[1693491184202,0.49648085,27122.0,27121.0,0.037]
[1693491184446,0.56553374,27122.0,27121.0,0.037]
[1693491184867,0.56553374,27122.0,27116.0,0.00099431]
[1693491185076,0.02,27118.0,27116.0,0.00099431]
[1693491185491,0.02,27118.0,27115.0,0.08814261]
[1693491185724,0.16707234,27118.0,27115.0,0.08814261]
[1693491185926,0.02,27118.0,27115.0,0.08814261]
[1693491186543,0.022,27118.0,27116.0,0.037]
[1693491186747,0.024,27118.0,27116.0,0.037]
[1693491187378,0.022,27118.0,27116.0,0.037]
[1693491187800,0.024,27118.0,27116.0,0.074]
[1693491188403,0.022,27118.0,27116.0,0.037]
[1693491188799,0.024,27118.0,27116.0,0.037]
[1693491189141,0.022,27118.0,27116.0,0.037]
[1693491189977,0.38768085,27117.0,27116.0,0.074]
[1693491190610,0.44136894,27117.0,27116.0,0.074]
[1693491190831,0.44136894,27117.0,27116.0,0.037]
[1693491191675,0.44136894,27117.0,27112.0,0.08912518]
[1693491191882,0.81164128,27117.0,27116.0,0.035]
[1693491192131,0.61088085,27117.0,27116.0,0.035]
[1693491192337,0.39168085,27117.0,27116.0,0.071]
[1693491192744,0.38968085,27117.0,27116.0,0.036]
[1693491192949,0.38768085,27117.0,27112.0,0.00098257]
[1693491193151,0.53675319,27117.0,27112.0,0.03798257]
[1693491193369,0.53675319,27117.0,27116.0,0.036]
[1693491193581,0.38968085,27117.0,27116.0,0.036]
[1693491193965,0.38768085,27117.0,27112.0,0.00098257]
[1693491194192,0.02,27115.0,27112.0,0.00098257]
[1693491194696,0.02,27115.0,27112.0,0.03798257]
[1693491195546,0.022,27115.0,27112.0,0.07498257]
[1693491195736,0.002,27115.0,27112.0,0.07498257]
[1693491195855,0.022,27115.0,27112.0,0.07498257]
[1693491196078,0.022,27115.0,27112.0,0.03798257]
[1693491196528,0.024,27115.0,27112.0,0.07498257]
[1693491197113,0.024,27115.0,27112.0,0.13013766]
[1693491197341,0.024,27115.0,27113.0,0.14022675]
[1693491197701,0.024,27115.0,27113.0,0.23279242]
[1693491198333,0.022,27115.0,27113.0,0.23279242]
[1693491198746,0.024,27115.0,27113.0,0.26979242]
[1693491198953,0.024,27115.0,27113.0,0.12459242]
[1693491199156,0.024,27115.0,27113.0,0.19746282]
[1693491199364,0.022,27115.0,27113.0,0.19746282]
[1693491199771,0.022,27115.0,27114.0,0.20406742]
[1693491200178,0.024,27115.0,27114.0,0.20406742]
[1693491200378,0.004,27115.0,27114.0,0.20406742]
[1693491200583,0.022,27115.0,27114.0,0.20406742]
[1693491200997,0.024,27115.0,27114.0,0.24106742]
[1693491201204,0.022,27115.0,27114.0,0.037]
[1693491201621,0.024,27115.0,27114.0,0.074]
[1693491203198,0.57792128,27115.0,27114.0,0.074]
[1693491203403,0.43084894,27115.0,27114.0,0.074]
[1693491204009,0.43084894,27115.0,27114.0,0.037]
[1693491204010,0.42884894,27115.0,27114.0,0.037]
[1693491204413,0.42884894,27115.0,27109.0,0.04581952]
[1693491204737,0.02,27112.0,27109.0,0.0448344]
[1693491204945,0.53475319,27112.0,27109.0,0.0448344]
[1693491205119,0.38768085,27112.0,27109.0,0.0448344]
[1693491206249,0.38768085,27112.0,27109.0,0.0548344]
[1693491206448,0.38768085,27112.0,27109.0,0.0448344]
[1693491206623,0.38768085,27112.0,27109.0,0.0548344]
[1693491207050,0.38768085,27112.0,27109.0,0.0448344]
[1693491207466,0.39068085,27112.0,27109.0,0.0818344]
[1693491208014,0.39268085,27112.0,27109.0,0.1188344]
[1693491208118,0.02,27110.0,27109.0,0.1188344]
[1693491208337,0.38768085,27110.0,27109.0,0.1188344]
[1693491209358,0.38768085,27110.0,27109.0,0.0448344]
[1693491209561,0.39068085,27110.0,27109.0,0.0818344]
[1693491209787,0.39368085,27110.0,27109.0,0.1188344]
[1693491209997,0.39368085,27110.0,27109.0,0.0818344]
[1693491209998,0.39068085,27110.0,27109.0,0.0818344]
[1693491210399,0.38768085,27110.0,27109.0,0.0448344]
[1693491210718,0.39068085,27110.0,27109.0,0.0818344]
[1693491211610,0.39368085,27110.0,27109.0,0.1188344]
[1693491212257,0.43852674,27110.0,27109.0,0.1188344]
[1693491212484,0.68752674,27110.0,27109.0,1.18227142]
[1693491212698,0.68752674,27110.0,27109.0,0.1188344]
[1693491212911,0.52268085,27110.0,27109.0,0.1188344]
[1693491213131,0.026,27110.0,27109.0,0.34995771]
[1693491213337,0.02,27110.0,27109.0,0.27595771]
[1693491213579,0.021,27110.0,27109.0,0.27595771]
[1693491214207,0.02,27110.0,27109.0,0.27595771]
[1693491214416,0.021,27110.0,27109.0,0.27595771]
[1693491215077,0.021,27110.0,27109.0,0.38495771]
[1693491215289,0.023,27110.0,27109.0,0.38495771]
[1693491215490,0.021,27110.0,27109.0,0.38495771]
[1693491215919,0.022,27110.0,27109.0,0.40895771]
[1693491216097,0.023,27110.0,27109.0,0.42095771]
[1693491216665,0.022,27110.0,27109.0,0.40895771]
[1693491216873,0.024,27110.0,27109.0,0.43395771]